{"text_format":"3","workbook":"xlsx","n_sheets":2,"sheets":["Equipment Inventory","Settings"],"not_rendered":{"defined_names":4},"read":"whole","date_system":"1900"}

{"sheet":"Equipment Inventory","index":0,"n_rows":35,"n_cols":6,"rows_kept":35,"merged":[[0,1,2,2],[0,4,0,5]]}
[]
[{"$nulls":4},"Highlight Items older than:"]
[{"$nulls":4},4]
[]
[null,"EQUIPMENT ID","ITEM NAME","ASSIGNED TO","ISSUE DATE","AGE OF ITEM"]
[null,"ITEM0001","chair","Employee 1",{"$f":"TODAY()-25","v":"2012-08-03"},{"$f":"IF(tblEquipmentInventory[[#This Row],[ISSUE DATE]]<>\"\",TODAY()-tblEquipmentInventory[[#This Row],[ISSUE DATE]],\"\")","v":{"v":25,"d":"25 days"}}]
[null,"ITEM0002","laser printer","Employee 2",{"$f":"TODAY()-479","v":"2011-05-07"},{"$f":"IF(tblEquipmentInventory[[#This Row],[ISSUE DATE]]<>\"\",TODAY()-tblEquipmentInventory[[#This Row],[ISSUE DATE]],\"\")","v":{"v":479,"d":"479 days"}}]
[null,"ITEM0003","scanner","Employee 3",{"$f":"TODAY()-177","v":"2012-03-04"},{"$f":"IF(tblEquipmentInventory[[#This Row],[ISSUE DATE]]<>\"\",TODAY()-tblEquipmentInventory[[#This Row],[ISSUE DATE]],\"\")","v":{"v":177,"d":"177 days"}}]
[null,"ITEM0004","laser printer","Employee 7",{"$f":"TODAY()-18","v":"2012-08-10"},{"$f":"IF(tblEquipmentInventory[[#This Row],[ISSUE DATE]]<>\"\",TODAY()-tblEquipmentInventory[[#This Row],[ISSUE DATE]],\"\")","v":{"v":18,"d":"18 days"}}]
[null,"ITEM0005","coffee maker","Employee 20",{"$f":"TODAY()-227","v":"2012-01-14"},{"$f":"IF(tblEquipmentInventory[[#This Row],[ISSUE DATE]]<>\"\",TODAY()-tblEquipmentInventory[[#This Row],[ISSUE DATE]],\"\")","v":{"v":227,"d":"227 days"}}]
[null,"ITEM0006","scanner","Employee 14",{"$f":"TODAY()-50","v":"2012-07-09"},{"$f":"IF(tblEquipmentInventory[[#This Row],[ISSUE DATE]]<>\"\",TODAY()-tblEquipmentInventory[[#This Row],[ISSUE DATE]],\"\")","v":{"v":50,"d":"50 days"}}]
[null,"ITEM0007","table","Employee 4",{"$f":"TODAY()-120","v":"2012-04-30"},{"$f":"IF(tblEquipmentInventory[[#This Row],[ISSUE DATE]]<>\"\",TODAY()-tblEquipmentInventory[[#This Row],[ISSUE DATE]],\"\")","v":{"v":120,"d":"120 days"}}]
[null,"ITEM0008","copy machine","Employee 12",{"$f":"TODAY()-499","v":"2011-04-17"},{"$f":"IF(tblEquipmentInventory[[#This Row],[ISSUE DATE]]<>\"\",TODAY()-tblEquipmentInventory[[#This Row],[ISSUE DATE]],\"\")","v":{"v":499,"d":"499 days"}}]
[null,"ITEM0009","extra monitor","Employee 8",{"$f":"TODAY()-30","v":"2012-07-29"},{"$f":"IF(tblEquipmentInventory[[#This Row],[ISSUE DATE]]<>\"\",TODAY()-tblEquipmentInventory[[#This Row],[ISSUE DATE]],\"\")","v":{"v":30,"d":"30 days"}}]
[null,"ITEM0010","whiteboard","Employee 19",{"$f":"TODAY()-50","v":"2012-07-09"},{"$f":"IF(tblEquipmentInventory[[#This Row],[ISSUE DATE]]<>\"\",TODAY()-tblEquipmentInventory[[#This Row],[ISSUE DATE]],\"\")","v":{"v":50,"d":"50 days"}}]
[null,"ITEM0011","copy machine","Employee 12",{"$f":"TODAY()-450","v":"2011-06-05"},{"$f":"IF(tblEquipmentInventory[[#This Row],[ISSUE DATE]]<>\"\",TODAY()-tblEquipmentInventory[[#This Row],[ISSUE DATE]],\"\")","v":{"v":450,"d":"450 days"}}]
[null,"ITEM0012","stationery","Employee 18",{"$f":"TODAY()-420","v":"2011-07-05"},{"$f":"IF(tblEquipmentInventory[[#This Row],[ISSUE DATE]]<>\"\",TODAY()-tblEquipmentInventory[[#This Row],[ISSUE DATE]],\"\")","v":{"v":420,"d":"420 days"}}]
[null,"ITEM0013","extra monitor","Employee 8",{"$f":"TODAY()-250","v":"2011-12-22"},{"$f":"IF(tblEquipmentInventory[[#This Row],[ISSUE DATE]]<>\"\",TODAY()-tblEquipmentInventory[[#This Row],[ISSUE DATE]],\"\")","v":{"v":250,"d":"250 days"}}]
[null,"ITEM0014","coffee maker","Employee 9",{"$f":"TODAY()-45","v":"2012-07-14"},{"$f":"IF(tblEquipmentInventory[[#This Row],[ISSUE DATE]]<>\"\",TODAY()-tblEquipmentInventory[[#This Row],[ISSUE DATE]],\"\")","v":{"v":45,"d":"45 days"}}]
[null,"ITEM0015","stationery","Employee 13",{"$f":"TODAY()-502","v":"2011-04-14"},{"$f":"IF(tblEquipmentInventory[[#This Row],[ISSUE DATE]]<>\"\",TODAY()-tblEquipmentInventory[[#This Row],[ISSUE DATE]],\"\")","v":{"v":502,"d":"502 days"}}]
[null,"ITEM0016","scanner","Employee 1",{"$f":"TODAY()-350","v":"2011-09-13"},{"$f":"IF(tblEquipmentInventory[[#This Row],[ISSUE DATE]]<>\"\",TODAY()-tblEquipmentInventory[[#This Row],[ISSUE DATE]],\"\")","v":{"v":350,"d":"350 days"}}]
[null,"ITEM0017","copy machine","Employee 19",{"$f":"TODAY()-125","v":"2012-04-25"},{"$f":"IF(tblEquipmentInventory[[#This Row],[ISSUE DATE]]<>\"\",TODAY()-tblEquipmentInventory[[#This Row],[ISSUE DATE]],\"\")","v":{"v":125,"d":"125 days"}}]
[null,"ITEM0018","whiteboard","Employee 15",{"$f":"TODAY()-90","v":"2012-05-30"},{"$f":"IF(tblEquipmentInventory[[#This Row],[ISSUE DATE]]<>\"\",TODAY()-tblEquipmentInventory[[#This Row],[ISSUE DATE]],\"\")","v":{"v":90,"d":"90 days"}}]
[null,"ITEM0019","chair","Employee 16",{"$f":"TODAY()-730","v":"2010-08-29"},{"$f":"IF(tblEquipmentInventory[[#This Row],[ISSUE DATE]]<>\"\",TODAY()-tblEquipmentInventory[[#This Row],[ISSUE DATE]],\"\")","v":{"v":730,"d":"730 days"}}]
[null,"ITEM0020","dusting cloth (1 set)","Employee 3",{"$f":"TODAY()-540","v":"2011-03-07"},{"$f":"IF(tblEquipmentInventory[[#This Row],[ISSUE DATE]]<>\"\",TODAY()-tblEquipmentInventory[[#This Row],[ISSUE DATE]],\"\")","v":{"v":540,"d":"540 days"}}]
[null,"ITEM0021","laser printer","Employee 7",{"$f":"TODAY()-18","v":"2012-08-10"},{"$f":"IF(tblEquipmentInventory[[#This Row],[ISSUE DATE]]<>\"\",TODAY()-tblEquipmentInventory[[#This Row],[ISSUE DATE]],\"\")","v":{"v":18,"d":"18 days"}}]
[null,"ITEM0022","laptop computer","Employee 8",{"$f":"TODAY()-283","v":"2011-11-19"},{"$f":"IF(tblEquipmentInventory[[#This Row],[ISSUE DATE]]<>\"\",TODAY()-tblEquipmentInventory[[#This Row],[ISSUE DATE]],\"\")","v":{"v":283,"d":"283 days"}}]
[null,"ITEM0023","stationery","Employee 9",{"$f":"TODAY()-479","v":"2011-05-07"},{"$f":"IF(tblEquipmentInventory[[#This Row],[ISSUE DATE]]<>\"\",TODAY()-tblEquipmentInventory[[#This Row],[ISSUE DATE]],\"\")","v":{"v":479,"d":"479 days"}}]
[null,"ITEM0024","laser printer","Employee 19",{"$f":"TODAY()-355","v":"2011-09-08"},{"$f":"IF(tblEquipmentInventory[[#This Row],[ISSUE DATE]]<>\"\",TODAY()-tblEquipmentInventory[[#This Row],[ISSUE DATE]],\"\")","v":{"v":355,"d":"355 days"}}]
[null,"ITEM0025","table","Employee 7",{"$f":"TODAY()-28","v":"2012-07-31"},{"$f":"IF(tblEquipmentInventory[[#This Row],[ISSUE DATE]]<>\"\",TODAY()-tblEquipmentInventory[[#This Row],[ISSUE DATE]],\"\")","v":{"v":28,"d":"28 days"}}]
[null,"ITEM0026","whiteboard","Employee 8",{"$f":"TODAY()-28","v":"2012-07-31"},{"$f":"IF(tblEquipmentInventory[[#This Row],[ISSUE DATE]]<>\"\",TODAY()-tblEquipmentInventory[[#This Row],[ISSUE DATE]],\"\")","v":{"v":28,"d":"28 days"}}]
[null,"ITEM0027","laptop computer","Employee 19",{"$f":"TODAY()-736","v":"2010-08-23"},{"$f":"IF(tblEquipmentInventory[[#This Row],[ISSUE DATE]]<>\"\",TODAY()-tblEquipmentInventory[[#This Row],[ISSUE DATE]],\"\")","v":{"v":736,"d":"736 days"}}]
[null,"ITEM0028","table","Employee 12",{"$f":"TODAY()-68","v":"2012-06-21"},{"$f":"IF(tblEquipmentInventory[[#This Row],[ISSUE DATE]]<>\"\",TODAY()-tblEquipmentInventory[[#This Row],[ISSUE DATE]],\"\")","v":{"v":68,"d":"68 days"}}]
[null,"ITEM0029","scanner","Employee 14",{"$f":"TODAY()-67","v":"2012-06-22"},{"$f":"IF(tblEquipmentInventory[[#This Row],[ISSUE DATE]]<>\"\",TODAY()-tblEquipmentInventory[[#This Row],[ISSUE DATE]],\"\")","v":{"v":67,"d":"67 days"}}]
[null,"ITEM0030","coffee maker","Employee 3",{"$f":"TODAY()-149","v":"2012-04-01"},{"$f":"IF(tblEquipmentInventory[[#This Row],[ISSUE DATE]]<>\"\",TODAY()-tblEquipmentInventory[[#This Row],[ISSUE DATE]],\"\")","v":{"v":149,"d":"149 days"}}]

{"sheet":"Settings","index":1,"n_rows":23,"n_cols":4,"rows_kept":23}
[]
[]
[null,"EMPLOYEES",null,"ITEMS"]
[null,"Employee 1",null,"chair"]
[null,"Employee 2",null,"coffee maker"]
[null,"Employee 3",null,"copy machine"]
[null,"Employee 4",null,"desktop computer"]
[null,"Employee 5",null,"dusting cloth (1 set)"]
[null,"Employee 6",null,"extra monitor"]
[null,"Employee 7",null,"inkjet printer"]
[null,"Employee 8",null,"laptop computer"]
[null,"Employee 9",null,"laser printer"]
[null,"Employee 10",null,"marker pens (3 pack)"]
[null,"Employee 11",null,"scanner"]
[null,"Employee 12",null,"stationery"]
[null,"Employee 13",null,"table"]
[null,"Employee 14",null,"USB drive"]
[null,"Employee 15",null,"whiteboard"]
[null,"Employee 16"]
[null,"Employee 17"]
[null,"Employee 18"]
[null,"Employee 19"]
[null,"Employee 20"]